[Event "7th Uppsala Young Champions"]
[Site "Uppsala"]
[Date "2020.10.28"]
[Round "9.15"]
[White "Ostlund, Joar"]
[Black "Trost, Edvin"]
[Result "0-1"]
[ECO "E99"]
[WhiteElo "2106"]
[BlackElo "2202"]
[Annotator "NA"]
[PlyCount "84"]
[EventDate "2020.10.23"]
[EventType "swiss"]
[EventCountry "SWE"]
[SourceTitle "playchess.com"]
[Source "ChessBase"]
[SourceQuality "1"]
[TimeControl "5400+30"]

1. d4 {[%emt 0:00:00]} Nf6 {[%emt 0:00:33]} 2. c4 {[%emt 0:00:00]} g6 {[%emt 0:01:18]} 3. Nc3 {[%emt 0:00:07]} Bg7 {[%emt 0:00:18]} 4. e4 {[%emt 0:00:11]} d6 {[%emt 0:00:35]} 5. Nf3 {[%emt 0:00:08]} O-O {[%emt 0:00:13]} 6. Be2 {[%emt 0:00:08]} e5 {[%emt 0:00:03]} 7. O-O {[%emt 0:00:10]} Nc6 {[%emt 0:00:03]} 8. d5 {[%emt 0:00:24]} Ne7 {[%emt 0:00:07]} 9. Ne1 {[%emt 0:00:12]} Nd7 {[%emt 0:00:23]} 10. Be3 {[%emt 0:00:08]} f5 {[%emt 0:00:10]} 11. f3 {[%emt 0:00:06]} f4 {[%emt 0:00:05]} 12. Bf2 {[%emt 0:00:04]} g5 {[%emt 0:00:03]} 13. Nd3 {[%emt 0:00:06]} b6 {[%emt 0:07:55]} 14. b4 {[%emt 0:00:15]} Rf6 {[%emt 0:04:30]} (14... Ng6 $142) 15. c5 {[%emt 0:03:20]} a6 {[%emt 0:01:12]} 16. Rc1 {[%emt 0:05:00]} Rh6 {[%emt 0:05:42]} 17. cxb6 {[%emt 0:10:43]} cxb6 {[%emt 0:00:18]} 18. Kh1 {[%emt 0:02:09]} Qe8 {[%emt 0:04:27]} 19. Bg1 {[%emt 0:11:08]} Nf6 {[%emt 0:05:05]} 20. Qe1 {[%emt 0:17:42]} g4 {[%emt 0:08:27]} 21. fxg4 {[%emt 0:02:49]} Nxg4 {[%emt 0:00:45]} 22. Bxg4 {[%emt 0:09:19]} Bxg4 {[%emt 0:00:15]} 23. Bxb6 {[%emt 0:01:45]} Qh5 {[%emt 0:04:45]} 24. Bg1 {[%emt 0:01:03] [#]} Bf6 $2 {[%emt 0:04:02]} (24... f3 $1 $19 {[%cal Rf3g2] has better winning chances.} 25. g3 Bh3) 25. Nf2 {[%emt 0:02:10]} Bh4 {[%emt 0:23:59]} 26. Qd2 {[%emt 0:01:26]} Bd7 {[%emt 0:03:36]} ({Black should try} 26... Bxf2 $1 $17 27. Qxf2 Rg6) 27. Qe2 {[%emt 0:03:23]} Qg6 {[%emt 0:01:27]} 28. a4 {[%emt 0:03:31]} Kh8 {[%emt 0:03:57]} 29. b5 {[%emt 0:04:46]} axb5 {[%emt 0:00:59]} ({Of course not} 29... Rg8 $6 30. Nd3 $14) 30. axb5 {[%emt 0:00:12]} Rg8 $1 {[%emt 0:06:18]} 31. Qf3 $15 {[%emt 0:03:14]} Nc8 {[%emt 0:00:30]} 32. Ra1 {[%emt 0:01:00]} Nb6 {[%emt 0:01:15]} 33. Ra7 {[%emt 0:08:13]} Nc4 {[%emt 0:00:45]} 34. Rd1 {[%emt 0:01:07]} Bc8 {[%emt 0:01:00]} 35. Rc7 {[%emt 0:02:12]} Ne3 {[%emt 0:01:19]} 36. b6 {[%emt 0:01:01]} Bxf2 {[%emt 0:03:44]} 37. Qxf2 {[%emt 0:02:35]} Nxd1 {[%emt 0:00:28]} 38. Nxd1 {[%emt 0:00:32]} Bh3 {[%emt 0:03:06]} 39. Rc2 {[%emt 0:01:35]} Qxe4 {[%emt 0:00:46]} 40. b7 {[%emt 0:01:59]} Qxd5 {[%emt 0:01:16]} 41. b8=Q {[%emt 0:04:01]} Rxb8 {[%emt 0:00:16]} 42. Nc3 {[%emt 0:00:32]} Qb7 {[%emt 0:00:46]} 0-1

[Event "7th Uppsala Young Champions"]
[Site "Uppsala"]
[Date "2020.10.28"]
[Round "9.16"]
[White "Seo, Jung Hyun"]
[Black "Urh, Zala"]
[Result "0-1"]
[ECO "B33"]
[WhiteElo "1936"]
[BlackElo "2195"]
[Annotator "NA"]
[PlyCount "80"]
[EventDate "2020.10.23"]
[EventType "swiss"]
[EventCountry "SWE"]
[SourceTitle "playchess.com"]
[Source "ChessBase"]
[SourceQuality "1"]
[TimeControl "5400+30"]

1. e4 {[%emt 0:00:00]} c5 {[%emt 0:01:10]} 2. Nf3 {[%emt 0:00:00]} Nc6 {[%emt 0:00:04]} 3. d4 {[%emt 0:00:00]} cxd4 {[%emt 0:00:09]} 4. Nxd4 {[%emt 0:00:00]} Nf6 {[%emt 0:00:12]} 5. Nc3 {[%emt 0:00:00]} e5 {[%emt 0:00:19]} 6. Ndb5 {[%emt 0:00:03]} d6 {[%emt 0:00:08]} 7. Bg5 {[%emt 0:00:04]} a6 {[%emt 0:00:17]} 8. Na3 {[%emt 0:00:03]} b5 {[%emt 0:00:06]} 9. Nd5 {[%emt 0:00:05]} Be7 {[%emt 0:00:07]} 10. Bxf6 {[%emt 0:00:05]} Bxf6 {[%emt 0:00:06]} 11. c3 {[%emt 0:00:03]} Bg5 {[%emt 0:00:57]} 12. Nc2 {[%emt 0:00:08]} Rb8 {[%emt 0:00:07]} 13. Be2 {[%emt 0:02:27]} O-O {[%emt 0:00:56]} 14. Nce3 {[%emt 0:03:39]} a5 {[%emt 0:03:43]} 15. O-O {[%emt 0:01:02]} Be6 {[%emt 0:00:43]} 16. Qd3 {[%emt 0:06:03]} g6 {[%emt 0:09:48]} 17. b3 {[%emt 0:08:57]} Bh6 {[%emt 0:10:01]} 18. Bg4 {[%emt 0:03:02]} Kh8 {[%emt 0:02:29]} 19. Rad1 {[%emt 0:01:33]} Qc8 {[%emt 0:02:32]} 20. Qe2 {[%emt 0:07:23]} f5 {[%emt 0:02:51]} 21. exf5 {[%emt 0:03:52]} gxf5 {[%emt 0:00:33]} 22. Bh3 {[%emt 0:00:12]} f4 {[%emt 0:05:22]} 23. Bxe6 {[%emt 0:00:34]} Qxe6 {[%emt 0:00:07]} 24. Ng4 {[%emt 0:08:13]} Bg5 {[%emt 0:03:33]} 25. f3 {[%emt 0:01:25]} Qg6 {[%emt 0:07:15]} 26. Nf2 {[%emt 0:02:24]} b4 {[%emt 0:01:59]} 27. Ne4 {[%emt 0:05:44]} Bh4 {[%emt 0:04:32]} 28. Qa6 {[%emt 0:08:03]} Rg8 {[%emt 0:05:55]} 29. Rd2 {[%emt 0:02:24]} Rbc8 {[%emt 0:02:03]} 30. cxb4 {[%emt 0:05:52]} axb4 {[%emt 0:00:49]} 31. Qb5 {[%emt 0:03:28]} (31. Kh1 $16) 31... Nd4 {[%emt 0:12:13]} 32. Qxb4 {[%emt 0:01:56] [#]} Rc1 {[%emt 0:02:05]} ({Black should try} 32... Qg7 $1 $17 33. Nxd6 Rcd8) 33. Rxc1 {[%emt 0:04:42]} Nxf3+ $1 {[%emt 0:00:07] Double Attack} 34. Kh1 {[%emt 0:01:31]} Nxd2 {[%emt 0:00:13]} 35. Qxd2 {[%emt 0:00:18]} Qxe4 {[%emt 0:00:08]} 36. Nc3 $11 {[%emt 0:01:14]} Qg6 {[%emt 0:00:58]} 37. Nd5 {[%emt 0:07:45]} f3 {[%emt 0:04:53]} 38. Qc2 {[%emt 0:11:14]} fxg2+ {[%emt 0:08:14]} 39. Kg1 {[%emt 0:00:04]} Qf7 {[%emt 0:00:21]} 40. Rd1 {[%emt 0:00:45]} Qa7+ {[%emt 0:00:42]} 0-1

[Event "7th Uppsala Young Champions"]
[Site "Uppsala"]
[Date "2020.10.28"]
[Round "9.17"]
[White "Ruzic, Pia Marie"]
[Black "Rasti, Arvin"]
[Result "1-0"]
[ECO "A26"]
[WhiteElo "1929"]
[BlackElo "2201"]
[Annotator "ChessBase"]
[PlyCount "73"]
[EventDate "2020.10.23"]
[EventType "swiss"]
[EventCountry "SWE"]
[SourceTitle "playchess.com"]
[Source "ChessBase"]
[SourceQuality "1"]
[TimeControl "5400+30"]

1. c4 {[%emt 0:00:23]} d6 {[%emt 0:00:00]} 2. Nf3 {[%emt 0:00:44]} g6 {[%emt 0:00:00]} 3. g3 {[%emt 0:00:20]} Bg7 {[%emt 0:00:01]} 4. Bg2 {[%emt 0:00:48]} e5 {[%emt 0:00:14]} 5. d3 {[%emt 0:00:43]} Ne7 {[%emt 0:00:25]} 6. O-O {[%emt 0:02:06]} O-O {[%emt 0:00:10]} 7. Nc3 {[%emt 0:01:47]} f5 {[%emt 0:00:36]} 8. Rb1 {[%emt 0:03:48]} Nbc6 {[%emt 0:00:15]} 9. Nd5 {[%emt 0:00:45]} h6 {[%emt 0:01:09]} 10. b4 {[%emt 0:02:16]} Nxd5 {[%emt 0:00:23]} 11. cxd5 {[%emt 0:00:09]} Ne7 {[%emt 0:00:11]} 12. Nd2 {[%emt 0:02:06]} f4 {[%emt 0:01:53]} 13. Nc4 {[%emt 0:00:42]} Bf5 {[%emt 0:03:20]} 14. e4 {[%emt 0:16:33]} Bd7 {[%emt 0:00:53]} 15. d4 {[%emt 0:00:06]} Bb5 {[%emt 0:01:21]} 16. Qc2 {[%emt 0:00:15]} f3 {[%emt 0:00:50]} 17. Bh1 {[%emt 0:04:22]} exd4 {[%emt 0:00:20]} 18. a4 {[%emt 0:01:27]} Bxc4 {[%emt 0:01:27]} 19. Qxc4 {[%emt 0:00:07]} Qd7 {[%emt 0:00:06]} 20. Rb3 {[%emt 0:02:12]} g5 {[%emt 0:00:38]} 21. Rxf3 {[%emt 0:01:53]} Ng6 {[%emt 0:01:01]} 22. Rxf8+ {[%emt 0:01:10]} Rxf8 {[%emt 0:00:05]} 23. Bb2 {[%emt 0:06:35]} Ne5 {[%emt 0:00:33]} 24. Qb3 {[%emt 0:00:14]} d3 {[%emt 0:01:02]} 25. f3 {[%emt 0:04:34]} h5 {[%emt 0:01:44]} 26. Bc1 {[%emt 0:06:11]} h4 {[%emt 0:01:10]} 27. f4 {[%emt 0:03:58]} hxg3 {[%emt 0:01:34]} 28. hxg3 {[%emt 0:00:32]} Qh3 {[%emt 0:02:37]} 29. Bg2 {[%emt 0:02:13]} Qxg3 {[%emt 0:00:16]} 30. fxe5 {[%emt 0:00:49]} Bxe5 {[%emt 0:00:54]} 31. Rxf8+ {[%emt 0:01:08]} Kxf8 {[%emt 0:00:06]} 32. Bxg5 {[%emt 0:03:46]} d2 {[%emt 0:00:36]} 33. Qf3+ {[%emt 0:00:14]} Kg8 {[%emt 0:00:42]} 34. Bxd2 {[%emt 0:00:14]} Bd4+ {[%emt 0:00:21]} 35. Kf1 {[%emt 0:00:32]} Qh2 {[%emt 0:00:07]} 36. Be3 {[%emt 0:01:11]} Bg7 {[%emt 0:00:26]} 37. Bh3 {[%emt 0:02:42]} 1-0

[Event "7th Uppsala Young Champions"]
[Site "Uppsala"]
[Date "2020.10.28"]
[Round "9.18"]
[White "Hrescak, Ivana"]
[Black "Skahlberg Bjerknes-Lima de Far, Warg"]
[Result "1-0"]
[ECO "A58"]
[WhiteElo "2237"]
[BlackElo "1759"]
[Annotator "ChessBase"]
[PlyCount "114"]
[EventDate "2020.10.23"]
[EventType "swiss"]
[EventCountry "SWE"]
[SourceTitle "playchess.com"]
[Source "ChessBase"]
[SourceQuality "1"]
[TimeControl "5400+30"]

1. d4 {[%emt 0:00:15]} Nf6 {[%emt 0:00:00]} 2. c4 {[%emt 0:00:13]} c5 {[%emt 0:00:00]} 3. d5 {[%emt 0:00:10]} b5 {[%emt 0:00:00]} 4. cxb5 {[%emt 0:00:10]} a6 {[%emt 0:00:00]} 5. bxa6 {[%emt 0:00:05]} g6 {[%emt 0:00:23]} 6. Nc3 {[%emt 0:00:17]} Bxa6 {[%emt 0:00:10]} 7. g3 {[%emt 0:00:07]} d6 {[%emt 0:01:28]} 8. Bg2 {[%emt 0:00:06]} Bg7 {[%emt 0:03:11]} 9. Nf3 {[%emt 0:00:07]} O-O {[%emt 0:02:47]} 10. O-O {[%emt 0:00:26]} Nbd7 {[%emt 0:01:50]} 11. Rb1 {[%emt 0:00:38]} Qa5 {[%emt 0:11:52]} 12. Bd2 {[%emt 0:01:00]} Bb7 {[%emt 0:03:15]} 13. Qc2 {[%emt 0:06:31]} Rfb8 {[%emt 0:03:36]} 14. b3 {[%emt 0:03:01]} Qa7 {[%emt 0:02:28]} 15. e4 {[%emt 0:10:48]} Ba6 {[%emt 0:01:42]} 16. Rfd1 {[%emt 0:00:42]} Ng4 {[%emt 0:07:48]} 17. h3 {[%emt 0:05:02]} Nge5 {[%emt 0:01:15]} 18. Nxe5 {[%emt 0:02:51]} Nxe5 {[%emt 0:00:28]} 19. Be3 {[%emt 0:01:53]} Qc7 {[%emt 0:05:43]} 20. a4 {[%emt 0:02:07]} Qa5 {[%emt 0:02:49]} 21. Na2 {[%emt 0:11:25]} Rc8 {[%emt 0:14:11]} 22. Bd2 {[%emt 0:10:09]} Qb6 {[%emt 0:02:05]} 23. Bc3 {[%emt 0:00:41]} Qa7 {[%emt 0:02:55]} 24. Kh2 {[%emt 0:03:18]} Bb7 {[%emt 0:07:19]} 25. f4 {[%emt 0:03:02]} Nd7 {[%emt 0:00:19]} 26. Bxg7 {[%emt 0:00:27]} Kxg7 {[%emt 0:00:06]} 27. Nc3 {[%emt 0:01:07]} Qa5 {[%emt 0:06:30]} 28. Re1 {[%emt 0:03:57]} f6 {[%emt 0:05:13]} 29. Bf3 {[%emt 0:05:20]} Ba6 {[%emt 0:01:25]} 30. Bg4 {[%emt 0:01:33]} Rc7 {[%emt 0:01:52]} 31. h4 {[%emt 0:04:15]} Rb7 {[%emt 0:06:28]} 32. h5 {[%emt 0:03:17]} Rab8 {[%emt 0:02:09]} 33. Kg2 {[%emt 0:03:40]} Qc7 {[%emt 0:00:59]} 34. Na2 {[%emt 0:01:36]} Rb6 {[%emt 0:02:48]} 35. b4 {[%emt 0:01:46]} Bc8 {[%emt 0:01:01]} 36. b5 {[%emt 0:00:30]} Ra8 {[%emt 0:00:35]} 37. Qc4 {[%emt 0:08:00]} g5 {[%emt 0:01:16]} 38. Bxd7 Qxd7 {[%emt 0:00:23]} 39. f5 {[%emt 0:06:16]} h6 {[%emt 0:00:28]} 40. Nc3 {[%emt 0:01:34]} Qa7 {[%emt 0:00:33]} 41. Ra1 {[%emt 0:01:04]} Qa5 {[%emt 0:00:29]} 42. Reb1 {[%emt 0:00:25]} Bd7 {[%emt 0:00:34]} 43. Qd3 {[%emt 0:00:40]} Rc8 {[%emt 0:00:35]} 44. Qc4 {[%emt 0:00:33]} Ra8 {[%emt 0:00:28]} 45. Kf3 {[%emt 0:00:08]} Ra7 {[%emt 0:00:30]} 46. Ra2 {[%emt 0:01:00]} Ra8 {[%emt 0:00:32]} 47. g4 {[%emt 0:00:16]} Rb7 {[%emt 0:00:28]} 48. Ke3 {[%emt 0:00:52]} Qb6 {[%emt 0:00:30]} 49. Kf3 {[%emt 0:00:31]} Ra5 {[%emt 0:00:31]} 50. Ne2 {[%emt 0:00:22]} Rba7 {[%emt 0:00:31]} 51. Nc3 {[%emt 0:00:37]} Ra8 {[%emt 0:00:25]} 52. Rba1 {[%emt 0:00:25]} Qa7 {[%emt 0:00:33]} 53. Kg3 {[%emt 0:00:33]} Be8 {[%emt 0:00:26]} 54. Kf3 {[%emt 0:00:37]} Bd7 {[%emt 0:00:22]} 55. Kg3 {[%emt 0:00:29]} Kh7 {[%emt 0:00:44]} 56. e5 {[%emt 0:00:31]} fxe5 {[%emt 0:00:29]} 57. f6 {[%emt 0:00:10]} Rg8 {[%emt 0:01:03]} 1-0

[Event "7th Uppsala Young Champions"]
[Site "Uppsala"]
[Date "2020.10.28"]
[Round "9.19"]
[White "Ostensson, Julia"]
[Black "Grahn, Vidar"]
[Result "0-1"]
[ECO "C77"]
[WhiteElo "1562"]
[BlackElo "1864"]
[Annotator "NA"]
[PlyCount "146"]
[EventDate "2020.10.23"]
[EventType "swiss"]
[EventCountry "SWE"]
[SourceTitle "playchess.com"]
[Source "ChessBase"]
[SourceQuality "1"]
[TimeControl "5400+30"]

1. e4 {[%emt 0:00:00]} e5 {[%emt 0:00:00]} 2. Nf3 {[%emt 0:00:00]} Nc6 {[%emt 0:00:00]} 3. Bb5 {[%emt 0:00:00]} a6 {[%emt 0:00:00]} 4. Ba4 {[%emt 0:00:00]} Nf6 {[%emt 0:00:00]} 5. d3 {[%emt 0:00:08]} b5 {[%emt 0:00:00]} 6. Bb3 {[%emt 0:00:06]} Be7 {[%emt 0:00:00]} 7. Nbd2 {[%emt 0:00:56]} O-O {[%emt 0:00:14]} 8. c3 {[%emt 0:00:18]} d5 {[%emt 0:00:16]} 9. Qe2 {[%emt 0:01:57]} Re8 {[%emt 0:04:17]} 10. Nf1 {[%emt 0:01:29]} h6 {[%emt 0:03:18]} 11. h3 {[%emt 0:00:14]} Bf8 {[%emt 0:01:22]} 12. g4 {[%emt 0:00:12]} Qd6 {[%emt 0:04:32]} (12... a5 $17) 13. Ng3 {[%emt 0:00:35]} Na5 {[%emt 0:01:08]} 14. Bc2 {[%emt 0:00:24]} c5 {[%emt 0:00:52]} 15. Nf5 {[%emt 0:00:24]} (15. g5 $11 hxg5 16. Nxg5) 15... Bxf5 {[%emt 0:00:13]} 16. gxf5 {[%emt 0:00:09]} c4 {[%emt 0:01:12]} 17. Rg1 {[%emt 0:17:06]} (17. dxc4 $142 Nxc4 18. Nd2) 17... cxd3 {[%emt 0:01:21]} 18. Bxd3 {[%emt 0:00:10]} dxe4 {[%emt 0:02:25]} ({Don't do} 18... Nxe4 19. Bxe4 dxe4 20. Nd2 $17) 19. Bxe4 {[%emt 0:00:10]} Nxe4 {[%emt 0:01:09]} 20. Qxe4 {[%emt 0:00:12]} Rad8 {[%emt 0:00:30]} 21. Bd2 {[%emt 0:27:34]} Nc4 {[%emt 0:01:55]} 22. O-O-O {[%emt 0:03:12]} Qb6 {[%emt 0:06:20]} 23. Qh4 {[%emt 0:13:36]} Nxd2 {[%emt 0:07:52]} 24. Nxd2 {[%emt 0:00:26]} Be7 {[%emt 0:10:02]} 25. Qg3 {[%emt 0:01:37]} Bg5 {[%emt 0:01:35]} 26. h4 {[%emt 0:01:38]} Bxd2+ {[%emt 0:00:25]} (26... Rxd2 $1 $17 27. Rxd2 Bxd2+ 28. Kxd2 Qf6) 27. Rxd2 {[%emt 0:00:13]} Qf6 {[%emt 0:00:12]} 28. Re2 {[%emt 0:02:43]} ({White should try} 28. Rxd8 $15 Rxd8 29. Qg4) 28... e4 {[%emt 0:01:39]} 29. Qg4 {[%emt 0:29:01]} Rd5 {[%emt 0:07:41]} 30. Rxe4 {[%emt 0:00:00]} Rxe4 {[%emt 0:00:11]} 31. Qxe4 {[%emt 0:00:00]} Rxf5 {[%emt 0:01:26]} 32. Rd1 $19 {[%emt 0:00:00]} Rxf2 {[%emt 0:03:28]} 33. Rd4 {[%emt 0:01:24]} Rf1+ {[%emt 0:02:22]} 34. Kc2 {[%emt 0:00:09]} Qf5 {[%emt 0:00:38]} 35. Qxf5 {[%emt 0:00:14]} Rxf5 {[%emt 0:00:07]} 36. Rd6 {[%emt 0:00:07]} a5 {[%emt 0:00:44]} 37. Rd4 {[%emt 0:01:34]} g5 {[%emt 0:01:31]} 38. b3 {[%emt 0:00:31]} Rf2+ {[%emt 0:00:59]} 39. Kd3 {[%emt 0:00:22]} Rxa2 {[%emt 0:01:44]} 40. hxg5 {[%emt 0:00:07]} hxg5 {[%emt 0:00:23]} 41. Rd5 {[%emt 0:00:06]} f6 {[%emt 0:02:03]} 42. Rxb5 {[%emt 0:00:16]} g4 {[%emt 0:00:28]} 43. Rf5 {[%emt 0:00:31]} Kg7 {[%emt 0:00:49]} 44. Rf4 {[%emt 0:00:59]} Rg2 {[%emt 0:00:44]} 45. b4 {[%emt 0:01:06]} a4 {[%emt 0:04:38]} 46. b5 {[%emt 0:00:12]} a3 {[%emt 0:01:28]} 47. b6 {[%emt 0:00:24]} a2 {[%emt 0:01:00]} 48. b7 {[%emt 0:00:52]} a1=Q {[%emt 0:00:33]} 49. b8=Q {[%emt 0:00:02]} Rg3+ {[%emt 0:01:20]} 50. Ke4 {[%emt 0:00:16]} Qh1+ {[%emt 0:01:26]} 51. Kd4 {[%emt 0:00:39]} Qd1+ {[%emt 0:01:07]} 52. Kc4 {[%emt 0:00:59]} Qd3+ {[%emt 0:00:09]} 53. Kc5 {[%emt 0:00:29]} Qxc3+ {[%emt 0:00:41]} 54. Rc4 {[%emt 0:00:25]} Qa5+ {[%emt 0:00:53]} 55. Kc6 {[%emt 0:00:44]} Qa6+ {[%emt 0:00:52]} 56. Kc5 {[%emt 0:00:22]} Qa3+ {[%emt 0:00:08]} 57. Kc6 {[%emt 0:00:33]} Qf3+ {[%emt 0:00:10]} 58. Kc5 {[%emt 0:00:34]} Qf5+ {[%emt 0:01:35]} 59. Kc6 {[%emt 0:00:28]} Qe6+ {[%emt 0:00:38]} 60. Kc5 {[%emt 0:00:08]} Qe5+ {[%emt 0:00:30]} 61. Qxe5 {[%emt 0:00:11]} fxe5 {[%emt 0:00:21]} 62. Kd5 {[%emt 0:00:29]} Kf6 {[%emt 0:00:31]} 63. Ke4 {[%emt 0:00:08]} Rf3 {[%emt 0:01:19]} 64. Rc6+ {[%emt 0:00:15]} Kg5 {[%emt 0:00:27]} 65. Kxe5 {[%emt 0:01:13]} g3 {[%emt 0:00:57]} 66. Ke4 {[%emt 0:00:11]} Rf1 {[%emt 0:00:45]} 67. Rc8 {[%emt 0:00:36]} Kg4 {[%emt 0:00:45]} 68. Rg8+ {[%emt 0:01:20]} Kh3 {[%emt 0:00:09]} 69. Rh8+ {[%emt 0:00:32]} Kg2 {[%emt 0:00:10]} 70. Ke3 {[%emt 0:00:15]} Rf2 {[%emt 0:00:24]} 71. Rh7 {[%emt 0:00:44]} Kg1 {[%emt 0:00:20]} 72. Ra7 {[%emt 0:00:31]} g2 {[%emt 0:01:47]} 73. Rh7 {[%emt 0:00:28]} Kf1 {[%emt 0:00:30]} 0-1

[Event "7th Uppsala Young Champions"]
[Site "Uppsala"]
[Date "2020.10.28"]
[Round "9.20"]
[White "Buchert, Matthaus"]
[Black "Muntean, Victor"]
[Result "1-0"]
[ECO "C58"]
[WhiteElo "1427"]
[BlackElo "1968"]
[Annotator "NA"]
[PlyCount "69"]
[EventDate "2020.10.23"]
[EventType "swiss"]
[EventCountry "SWE"]
[SourceTitle "playchess.com"]
[Source "ChessBase"]
[SourceQuality "1"]
[TimeControl "5400+30"]

{[%evp 19,66,25,23,23,83,73,264,272,250,256,245,258,308,32767,32767,32767,32767,32767,32767,32767,32767,458,407,463,518,541,32767,536,620,452,440,437,499,32767,32767,758,862,897,837,32767,32767,1555,32767,32767,2402,32767,32767,5150,1729]} 1. e4 {[%emt 0:00:00]} e5 {[%emt 0:00:00]} 2. Nf3 {[%emt 0:00:00]} Nc6 {[%emt 0:00:00]} 3. Bc4 {[%emt 0:00:00]} Nf6 {[%emt 0:00:00]} 4. Ng5 {[%emt 0:00:07]} d5 {[%emt 0:00:00]} 5. exd5 {[%emt 0:00:11]} Na5 {[%emt 0:00:37]} 6. Bb5+ {[%emt 0:00:10]} c6 {[%emt 0:00:10]} 7. dxc6 {[%emt 0:00:07]} bxc6 {[%emt 0:00:05]} 8. Bd3 {[%emt 0:00:10]} Nd5 {[%emt 0:01:33]} 9. Nf3 {[%emt 0:00:28]} Bd6 {[%emt 0:03:24]} 10. O-O {[%emt 0:03:12]} O-O {[%emt 0:01:45]} 11. Re1 {[%emt 0:01:07]} Nf4 {[%emt 0:04:38]} 12. Bf1 {[%emt 0:04:33]} f5 $2 {[%emt 0:01:37]} (12... c5 $16) 13. Nxe5 {[%emt 0:17:14]} Bxe5 {[%emt 0:13:16]} 14. Rxe5 {[%emt 0:00:53]} Ng6 {[%emt 0:00:11]} 15. Re1 {[%emt 0:04:16]} f4 {[%emt 0:02:15]} 16. d4 {[%emt 0:12:01]} Qg5 {[%emt 0:01:03]} 17. Nd2 {[%emt 0:16:58]} Bg4 {[%emt 0:04:25]} 18. Nf3 {[%emt 0:00:38]} Qd5 {[%emt 0:05:17]} 19. Qd3 {[%emt 0:07:39]} Kh8 {[%emt 0:04:24]} 20. Ne5 {[%emt 0:04:51]} Bf5 {[%emt 0:01:20]} 21. Qc3 {[%emt 0:01:54]} Rae8 {[%emt 0:08:16]} 22. Nxg6+ {[%emt 0:06:21]} Bxg6 {[%emt 0:02:41]} 23. Rxe8 {[%emt 0:00:48]} Bxe8 {[%emt 0:03:40]} 24. Bd2 {[%emt 0:01:59]} Nb7 {[%emt 0:00:34]} 25. Qb4 {[%emt 0:01:34]} Nd6 {[%emt 0:02:43]} 26. Re1 {[%emt 0:02:53]} Bg6 {[%emt 0:02:43]} 27. Re5 {[%emt 0:01:08]} Qf7 {[%emt 0:02:27]} 28. Qxd6 {[%emt 0:01:27]} f3 {[%emt 0:01:06]} 29. Re7 {[%emt 0:03:06]} Qxa2 {[%emt 0:02:05] [#]} 30. Rxa7 $1 {[%emt 0:01:30]} Qg8 {[%emt 0:01:02]} 31. Qxc6 {[%emt 0:01:27]} fxg2 {[%emt 0:01:45]} 32. Bc4 {[%emt 0:00:52]} Be4 {[%emt 0:00:05]} 33. Bxg8 $18 {[%emt 0:01:36]} (33. Qc7 $142 Rc8 {[#]} 34. Qe5 $1 {[%mdl 512]} Qf8 35. Bh6 $1 {[%mdl 512]} Bb7 36. Rxb7 Qxf2+ 37. Kxf2 Rf8+ 38. Kxg2 Rf2+ 39. Kh1 Rf1+ 40. Bxf1 Kg8 41. Qxg7#) 33... Bxc6 {[%emt 0:00:08]} 34. d5 {[%emt 0:00:09]} Bb5 {[%emt 0:00:53]} 35. Be6 {[%emt 0:00:32]} 1-0